fUSD/lending_fUSD_20260309
["ID","MTS","AMOUNT","RATE_DAILY","PERIOD"]
[408064672,1773096632448,-609.719784,0.00017812,7]
[408064673,1773096632457,-420.0,0.0001803,2]
[408064674,1773096632467,-1680.0,0.0001812,2]
[408064675,1773096632477,-500.0,0.00018356,7]
[408064676,1773096632487,-500.0,0.00018356,7]
[408064677,1773096632496,-500.0,0.00018356,7]
[408064678,1773096632506,-3198.50468342,0.00018479,2]
[408064679,1773096632517,-4820.12542113,0.00018539,2]
[408064680,1773096632526,-157290.9104067,0.00018541,2]
[408064681,1773096632539,-8545.3964317,0.00018541,2]
[408064682,1773096632551,-405.21062676,0.00018541,2]
[408064683,1773096632563,-386.10785737,0.00018541,2]
[408064684,1773096632583,-405.95699874,0.00018541,2]
[408064685,1773096632595,-1125.14410807,0.00018541,2]
[408064686,1773096632621,-743.70359681,0.00018541,2]
[408064692,1773096638005,-8743.89997385,0.00018541,2]
[408064694,1773096638015,-500.0,0.00018579,2]
[408064695,1773096638025,-200.0,0.00018633,2]
[408064696,1773096638035,-3198.50468342,0.00018637,2]
[408064697,1773096638046,-5350.52395258,0.00018664,4]
[408064698,1773096638056,-593.68,0.00018678,2]
[408064699,1773096638072,-500.0,0.00018708,3]
[408064700,1773096638083,-3240.0,0.00018749,2]
[408064701,1773096638093,-299.99,0.00018749,4]
[408064702,1773096638104,-3198.50468342,0.00018795,2]
[408064703,1773096638114,-2000.0,0.00018809,2]
[408064704,1773096638123,-436.92,0.00018828,2]
[408064705,1773096638134,-503.0,0.00018909,3]
[408064706,1773096638143,-3924.85,0.00018931,2]
[408064707,1773096638153,-3198.50468342,0.00018953,2]
[408064708,1773096638162,-311.21312528,0.00018998,2]
[408064709,1773096638176,-500.0,0.00018998,2]
[408064710,1773096638186,-345.07492557,0.00018998,2]
[408064711,1773096638197,-1000.0,0.00018999,2]
[408064712,1773096638207,-693.3919763,0.00018999,2]
[408064713,1773096638218,-174.61919141,0.00018999,2]
[408064714,1773096638228,-8210.0413329,0.00018999,2]
[408064715,1773096638238,-1500.0,0.00018999,2]
[408064716,1773096638250,-1500.0,0.00018999,2]
[408064717,1773096638263,-1500.0,0.00018999,2]
[408064718,1773096638282,-168.76571401,0.00019014,2]
[408064719,1773096638294,-167.42751788,0.00019014,2]
[408064720,1773096638305,-847.0,0.0001904,2]
[408064721,1773096638319,-3198.50468342,0.00019111,2]
[408064722,1773096638330,-593.68,0.00019145,2]
[408064723,1773096638341,-622.02,0.00019178,2]
[408064724,1773096638351,-1000.0,0.00019178,2]
[408064725,1773096638361,-173.38953983,0.00019205,2]
[408064726,1773096638372,-168.76571401,0.00019205,2]
[408064727,1773096638385,-167.42751788,0.00019205,2]
[408064728,1773096638396,-3198.50468342,0.00019268,2]
[408064729,1773096638405,-218.0,0.00019292,2]
[408064730,1773096638415,-173.85,0.00019316,2]
[408064731,1773096638423,-3466.35,0.00019339,2]
[408064732,1773096638433,-560.0,0.0001934,5]
[408064733,1773096638443,-2806.0,0.0001936,2]
[408064734,1773096638452,-154.89423657,0.00019425,2]
[408064735,1773096638461,-173.38953983,0.00019425,2]
[408064736,1773096638470,-168.76571401,0.00019425,2]
[408064737,1773096638480,-167.42751788,0.00019425,2]
[408064738,1773096638489,-3198.50468342,0.00019426,2]
[408064739,1773096638499,-1000.0,0.00019452,2]
[408064740,1773096638509,-218.0,0.00019474,2]
[408064741,1773096638522,-166.7,0.00019477,2]
[408064742,1773096638532,-1000.0,0.00019547,2]
[408064743,1773096638542,-181.08010149,0.00019547,2]
[408064744,1773096638551,-3198.50468342,0.00019584,2]
[408064745,1773096638561,-1104.25286959,0.000196,2]
[408064746,1773096638571,-593.68,0.00019612,2]
[408064747,1773096638580,-173.38953983,0.00019616,2]
[408064748,1773096638590,-168.76571401,0.00019616,2]
[408064749,1773096638599,-167.42751788,0.00019616,2]
[408064750,1773096638608,-2000.0,0.000197,2]
[408064752,1773096638618,-587.0,0.00019703,2]
[408064754,1773096638627,-433.0,0.00019722,2]
[408064755,1773096638636,-150.0,0.00019722,2]
[408064756,1773096638645,-150.0,0.00019722,2]
[408064758,1773096638654,-150.0,0.00019722,2]
[408064760,1773096638664,-150.0,0.00019722,2]
[408064762,1773096638673,-150.0,0.00019722,2]
[408064764,1773096638682,-1000.0,0.00019726,2]
[408064766,1773096638692,-1000.0,0.0001974,2]
[408064768,1773096638701,-3198.50468342,0.00019742,2]
[408064769,1773096638710,-172.87392778,0.00019774,2]
[408064770,1773096638719,-433.0,0.00019777,2]
[408064771,1773096638728,-150.0,0.00019777,2]
[408064772,1773096638737,-150.0,0.00019777,2]
[408064773,1773096638746,-150.0,0.00019777,2]
[408064774,1773096638755,-150.0,0.00019777,2]
[408064775,1773096638764,-612.1192,0.00019789,2]
[408064776,1773096638777,-195.0,0.00019789,2]
[408064777,1773096638786,-150.0,0.00019792,2]
[408064778,1773096638795,-153.01021088,0.00019797,3]
[408064779,1773096638804,-13602.17356909,0.00019797,2]
[408064780,1773096638814,-2500.0,0.000198,2]
[408064781,1773096638824,-218.0,0.00019803,2]
[408064782,1773096638833,-13602.17356904,0.00019808,2]
[408064783,1773096638843,-13602.17356904,0.0001982,2]
[408064784,1773096638853,-1000.0,0.00019826,2]
[408064785,1773096638864,-13602.17356904,0.00019831,2]
[408064786,1773096638873,-433.0,0.00019832,2]
[408064787,1773096638882,-200.0,0.00019832,2]
[408064788,1773096638891,-200.0,0.00019832,2]
[408064789,1773096638901,-200.0,0.00019832,2]
[408064790,1773096639180,-200.0,0.00019832,2]
[408064791,1773096639204,-167.42751788,0.00019836,2]
[408064792,1773096639213,-13602.17356904,0.00019843,2]
[408064793,1773096639223,-13602.17356904,0.00019854,2]
[408064794,1773096639232,-13602.17356904,0.00019866,2]
[408064795,1773096639241,-13602.17356904,0.00019877,2]
[408064796,1773096639251,-433.0,0.00019886,2]
[408064797,1773096639263,-13602.17356904,0.00019889,2]
[408064798,1773096639273,-79596.1028,0.00019896,2]
[408064799,1773096639282,-1816.86,0.00019897,2]
[408064800,1773096639292,-168.60559572,0.00019897,2]
[408064801,1773096639301,-500.0,0.00019899,2]
[408064802,1773096639310,-1000.0,0.000199,2]
[408064803,1773096639320,-8482.4506,0.000199,2]
[408064804,1773096639329,-5000.0,0.000199,2]
[408064805,1773096639338,-2351.0,0.000199,2]
[408064806,1773096639347,-13602.17356904,0.000199,2]
[408064807,1773096639356,-3198.50468342,0.000199,2]
[408064808,1773096639366,-4006.0,0.00019902,2]
[408064809,1773096639375,-168.0,0.00019917,2]
[408064810,1773096639386,-150.0,0.00019921,2]
[408064811,1773096639395,-500.0,0.00019926,2]
[408064812,1773096639405,-500.0,0.00019926,2]
[408064813,1773096639414,-5155.77726653,0.00019927,2]
[408064814,1773096639424,-400.0,0.00019931,2]
[408064815,1773096639433,-250.0,0.00019941,2]
[408064816,1773096639443,-433.0,0.00019941,2]
[408064817,1773096639452,-151.0,0.00019968,2]
[408064818,1773096639461,-500.0,0.00019973,2]
[408064819,1773096639469,-500.0,0.00019973,2]
[408064820,1773096639478,-250.0,0.00019973,2]
[408064821,1773096639487,-195.0,0.00019987,2]
[408064822,1773096639497,-445.4,0.00019989,2]
[408064823,1773096639506,-433.0,0.00019996,2]
[408064824,1773096639517,-23215.5609296,0.00019996,2]
[408064825,1773096639526,-6800.0723046,0.00019996,2]
[408064826,1773096639535,-152283.61744618,0.00019996,2]
[408064827,1773096639551,-424.06072804,0.00019996,2]
[408064828,1773096639583,-692.12501114,0.00019996,2]
[408064829,1773096639596,-1895.51665775,0.00019996,2]
[408064831,1773096640184,-421.01419753,0.00019973,2]
[408064832,1773096640376,-578.98580247,0.00019973,2]
[408064833,1773096640385,-207.16668336,0.00019996,2]
[408064834,1773096640435,-1104.67429576,0.00019996,2]
[408064851,1773096643222,-6872.7,0.000195,14]
[408064852,1773096643232,-4640.02978511,0.00019996,2]
[408064895,1773096646994,-500.0,0.000199,2]
[408064896,1773096647005,-552.8612,0.000199,2]
[408064897,1773096647023,-15636.83622039,0.000199,2]
[408064898,1773096647032,-14430.40317136,0.00019996,2]
[408064899,1773096647041,-24194.7718389,0.00019996,2]
[408064900,1773096647050,-1999.2165436,0.00019996,2]
[408064901,1773096647058,-151.0,0.00019997,2]
[408064902,1773096647068,-500.18742419,0.00019999,2]
[408064903,1773096647076,-500.0,0.00019999,2]
[408064904,1773096647085,-571.1340409,0.00019999,2]
[408064905,1773096647094,-241.8834005,0.00019999,2]
[408064906,1773096647103,-500.0,0.00019999,2]
[408064907,1773096647111,-500.0,0.00019999,2]
[408064908,1773096647120,-464.01304219,0.00019999,2]
[408064909,1773096647129,-1309.0,0.0002,2]
[408064910,1773096647138,-1046.0,0.0002,2]
[408064911,1773096647147,-515064.1825198,0.0002,2]
[408064912,1773096647158,-31466.01939922,0.0002,2]
[408064913,1773096647167,-5616.16818788,0.0002,3]
[408064914,1773096647176,-42288.8064129,0.0002,3]
[408064915,1773096647187,-755.2488966,0.0002,3]
[408064916,1773096647327,-1328.228957,0.0002,3]
[408064918,1773096736248,718.4,9.215e-05,2]
[408064919,1773096850294,195.84,0.00014,2]
[408064920,1773097038176,500.0,9.215e-05,2]
[408064921,1773097089900,185.85,0.00014,2]
[408064922,1773097161077,671.08778037,0.00013,2]
[408064923,1773097501803,12623.67,0.0002,120]
[408064925,1773097569064,181.04,0.00014,2]
[408064926,1773097629974,500.0,0.00014215,2]
[408064927,1773097637155,500.0,0.00014215,2]
[408064928,1773097637615,151.0,0.00014215,2]
[408064929,1773097642904,500.0,9.215e-05,2]
[408064935,1773097832064,-156.0,0.00014215,2]
[408064936,1773097832075,-166.35,0.0001464,2]
[408064937,1773097832086,-150.0,0.00014999,2]
[408064938,1773097832095,-1200.0,0.00014999,2]
[408064939,1773097832107,-594.97257424,0.00015,30]
[408064940,1773097832122,-677.2376309,0.00015,30]
[408064941,1773097832133,-500.0,0.00015,30]
[408064942,1773097832144,-500.0,0.00015,30]
[408064943,1773097832154,-804.90484118,0.00015,30]
[408064944,1773097832163,-500.0,0.00015,30]
[408064945,1773097832172,-500.0,0.00015,30]
[408064946,1773097832184,-726.01234602,0.00015,30]
[408064947,1773097832195,-500.0,0.00015,30]
[408064948,1773097832205,-500.0,0.00015,30]
[408064949,1773097832214,-505.21434239,0.00015,30]
[408064950,1773097832223,-500.0,0.00015,30]
[408064951,1773097832233,-500.0,0.00015,30]
[408064952,1773097832242,-200.0,0.00015041,2]
[408064953,1773097832252,-1906.26,0.00015336,2]
[408064954,1773097832261,-510.89446278,0.000154,2]
[408064956,1773097832271,-600.0,0.00015636,2]
[408064958,1773097832279,-2251.53104127,0.00015807,2]
[408064960,1773097832289,-160.0,0.0001599,2]
[408064961,1773097832298,-160.0,0.0001599,2]
[408064963,1773097832307,-255.0,0.00016124,2]
[408064965,1773097832317,-5000.00830357,0.000162,5]
[408064967,1773097832326,-1680.0,0.00016499,2]
[408064969,1773097832335,-166.66,0.00016945,2]
[408064971,1773097832344,-503.0,0.00017,2]
[408064973,1773097832354,-503.0,0.00017,2]
[408064975,1773097832363,-503.0,0.00017,2]
[408064977,1773097832372,-216.82,0.00017022,2]
[408064979,1773097832382,-362.0,0.00017202,2]
[408064981,1773097832391,-166.66,0.00017302,2]
[408064983,1773097832401,-152.0,0.00017317,3]
[408064986,1773097832410,-433.0,0.00017339,2]
[408064988,1773097832422,-150.0,0.0001748,7]
[408064990,1773097832432,-211.502616,0.0001748,7]
[408064992,1773097832441,-273.005232,0.0001748,7]
[408064994,1773097832450,-334.507848,0.0001748,7]
[408064996,1773097832460,-396.010465,0.0001748,7]
[408064998,1773097832469,-457.513081,0.0001748,7]
[408065000,1773097832478,-519.015697,0.0001748,7]
[408065002,1773097832487,-580.518314,0.0001748,7]
[408065004,1773097832497,-642.02093,0.0001748,7]
[408065006,1773097832506,-703.523546,0.0001748,7]
[408065008,1773097832515,-1008.07,0.00017588,2]
[408065010,1773097832524,-166.66,0.00017659,2]
[408065011,1773097832534,-503.3005998,0.000179,2]
[408065012,1773097832543,-503.30059977,0.000179,2]
[408065013,1773097832553,-867.39039536,0.000179,2]
[408065014,1773097832563,-867.39039536,0.000179,2]
[408065015,1773097832572,-867.39039536,0.000179,2]
[408065016,1773097832581,-867.39039536,0.000179,2]
[408065017,1773097832590,-166.66,0.00018015,2]
[408065018,1773097832600,-888.16,0.00018066,2]
[408065019,1773097832609,-2351.0,0.00018149,2]
[408065020,1773097832619,-150.0,0.00018157,2]
[408065021,1773097832628,-248.686507,0.00018159,2]
[408065022,1773097832642,-503.30059977,0.00018209,2]
[408065023,1773097832651,-500.0,0.00018356,7]
[408065024,1773097832660,-500.0,0.00018356,7]
[408065025,1773097832669,-500.0,0.00018356,7]
[408065026,1773097832678,-166.66,0.00018372,2]
[408065027,1773097832688,-847.0,0.000184,2]
[408065028,1773097832698,-150.0,0.00018494,2]
[408065029,1773097832708,-500.0,0.00018596,2]
[408065030,1773097832717,-200.0,0.00018604,2]
[408065031,1773097832726,-13376.87,0.00018614,2]
[408065032,1773097832737,-609.0,0.00018629,2]
[408065033,1773097832747,-2806.0,0.0001872,2]
[408065034,1773097832756,-166.66,0.00018729,2]
[408065035,1773097832766,-250.0,0.00018783,2]
[408065036,1773097832775,-503.30059977,0.00018863,2]
[408065037,1773097832785,-9444.73,0.00018913,2]
[408065038,1773097832796,-1500.0,0.00018963,2]
[408065039,1773097832806,-503.0,0.00018969,3]
[408065040,1773097832815,-1600.0,0.00018976,2]
[408065041,1773097832825,-152.0,0.00018988,4]
[408065042,1773097832835,-8000.0,0.00018999,2]
[408065043,1773097832844,-695.39793187,0.00018999,2]
[408065044,1773097832855,-1000.0,0.00018999,2]
[408065045,1773097832865,-250.0,0.00018999,2]
[408065046,1773097832874,-1500.0,0.00018999,2]
[408065047,1773097832883,-500.0,0.00018999,2]
[408065048,1773097832893,-1500.0,0.00018999,2]
[408065049,1773097832902,-3000.0,0.00018999,2]
[408065050,1773097832911,-250.0,0.00018999,2]
[408065051,1773097832920,-1500.0,0.00018999,2]
[408065052,1773097832929,-10000.0,0.00018999,2]
[408065053,1773097832939,-997.16350561,0.00018999,2]
[408065054,1773097832948,-151.0,0.00018999,2]
[408065055,1773097832960,-174.61919141,0.00018999,2]
[408065056,1773097832969,-1000.0,0.00018999,2]
[408065057,1773097832979,-300.0,0.00018999,2]
[408065058,1773097832988,-1500.0,0.00018999,2]
[408065059,1773097832998,-1000.0,0.00018999,2]
[408065060,1773097833007,-668.65185757,0.00018999,2]
[408065061,1773097833017,-3000.0,0.00019,2]
[408065062,1773097833026,-847.0,0.0001904,2]
[408065063,1773097833036,-500.0,0.00019106,2]
[408065064,1773097833046,-228.27116237,0.00019125,2]
[408065065,1773097833055,-1000.0,0.00019178,2]
[408065066,1773097833064,-511.0,0.00019233,2]
[408065067,1773097833074,-2784.0,0.0001936,2]
[408065068,1773097833083,-2461.0,0.00019422,2]
[408065069,1773097833092,-5988.0,0.00019422,2]
[408065070,1773097833102,-203.19964949,0.00019425,2]
[408065071,1773097833111,-167.42751788,0.00019425,2]
[408065072,1773097833121,-500.0,0.00019452,7]
[408065073,1773097833130,-1000.0,0.00019452,2]
[408065074,1773097833140,-1047.83671771,0.000195,2]
[408065075,1773097833153,-952.16328229,0.000195,2]
[408065076,1773097833162,-2000.0,0.000195,2]
[408065077,1773097833171,-168.0,0.0001951,2]
[408065078,1773097833181,-858.83230888,0.00019547,2]
[408065079,1773097833194,-141.16769112,0.00019547,2]
[408065080,1773097833208,-181.08010149,0.00019547,2]
[408065081,1773097833218,-78.20220739,0.00019547,2]
[408065082,1773097833229,-485.4185,0.00019547,2]
[408065083,1773097833252,-129.77126891,0.00019547,2]
[408065084,1773097833262,-736.16857972,0.000196,2]
[408065085,1773097833271,-301.06161137,0.00019622,2]
[408065088,1773097838178,-207.19069215,0.00019622,2]
[408065089,1773097838187,-508.25230348,0.00019653,2]
[408065090,1773097838196,-508.25230348,0.00019684,2]
[408065091,1773097838206,-3259.60623695,0.00019686,2]
[408065092,1773097838352,-325.02024,0.00019686,2]
[408065099,1773097840388,-342.10734556,0.00019422,2]
[408065100,1773097840400,-71.89265444,0.00019422,2]
[408065101,1773097840409,-8653.27524676,0.00019686,2]
[408065102,1773097840580,-5311.93355016,0.00019686,2]
[408065103,1773097840592,-727.78795699,0.00019686,2]
[408065104,1773097840603,-618.75729086,0.00019686,2]
[408065118,1773097843390,-297.98264184,0.00019686,2]
[408065141,1773097846660,-8078.00150529,0.00019686,2]
[408065142,1773097846675,-17912.5995511,0.00019686,2]
[408065143,1773097846686,-13661.14640459,0.00019686,2]
[408065144,1773097846718,-2033.9295,0.00019686,2]
[408065145,1773097846728,-1151.30067516,0.00019686,2]
[408065146,1773097846740,-362.28257125,0.00019686,2]
[408065147,1773097846841,-782.5533745,0.00019686,2]
[408065150,1773098241175,500.0,9.215e-05,2]
[408065151,1773098241681,938.51687155,9.215e-05,2]
[408065152,1773098536695,500.0,9.215e-05,2]
[408065153,1773098540899,500.0,9.215e-05,2]
[408065154,1773098544780,777.36995783,9.215e-05,2]
[408065155,1773098553599,-165.25044417,0.000149,2]
[408065157,1773098847844,500.0,9.9e-05,2]
[408065159,1773098946511,-1200.0,0.00014999,2]
[408065160,1773098946532,-266.49104494,0.00015,2]
[408065161,1773098946556,-250.0,0.00015,2]
[408065162,1773098946577,-500.0,0.00015,30]
[408065163,1773098946598,-500.0,0.00015,30]
[408065164,1773098946625,-500.0,0.00015,30]
[408065165,1773098946647,-500.0,0.00015,30]
[408065166,1773098946667,-500.0,0.00015,30]
[408065167,1773098946688,-2626.81809527,0.00016492,2]
[408065168,1773098946708,-550.0,0.00016498,2]
[408065169,1773098946731,-237.18143312,0.00016499,2]
[408065170,1773098946754,-2387.61904,0.00016499,2]
[408065171,1773098946776,-250.0,0.00016499,2]
[408065172,1773098946797,-2500.0,0.00016499,2]
[408065173,1773098947070,-1680.0,0.00016499,2]
[408065174,1773098947126,2500.0,0.00016499,2]
[408065175,1773098947151,2041.91499997,0.00016499,2]
[408065176,1773098963974,150.0,0.00016399,2]
[408065184,1773099032322,-503.0,0.00017,2]
[408065185,1773099032332,-1593.11736725,0.00017028,2]
[408065186,1773099032343,-906.88263275,0.00017028,2]
[408065187,1773099032353,-154.556611,0.00017055,7]
[408065188,1773099032362,-733.78909714,0.0001735,2]
[408065189,1773099032373,-1766.21090286,0.0001735,2]
[408065190,1773099032382,-28.26660045,0.0001735,2]
[408065191,1773099032393,-1005.3639732,0.0001735,2]
[408065192,1773099032405,-1466.36942635,0.0001735,2]
[408065193,1773099032414,-2500.0,0.0001735,2]
[408065194,1773099032423,-173.46,0.00017365,2]
[408065195,1773099032433,-200.0,0.00017479,2]
[408065196,1773099032442,-300.0,0.0001785,2]
[408065197,1773099032451,-1200.0,0.0001785,2]
[408065198,1773099032460,-150.0,0.00017851,7]
[408065199,1773099032469,-192.535426,0.00017851,7]
[408065200,1773099032479,-235.070852,0.00017851,7]
[408065201,1773099032488,-277.606279,0.00017851,7]
[408065202,1773099032497,-320.141705,0.00017851,7]
[408065203,1773099032506,-362.677131,0.00017851,7]
[408065204,1773099032515,-405.212558,0.00017851,7]
[408065206,1773099032525,-447.747984,0.00017851,7]
[408065208,1773099032534,-490.283411,0.00017851,7]
[408065209,1773099032543,-532.818837,0.00017851,7]
[408065210,1773099032551,-454.71068769,0.00017953,2]
[408065211,1773099032560,-500.0,0.00018074,3]
[408065212,1773099032570,-3240.0,0.00018262,2]
[408065213,1773099032579,-2427.01,0.00018303,2]
[408065215,1773099032591,-2000.0,0.00018313,2]
[408065217,1773099032600,-762.74625195,0.00018337,2]
[408065219,1773099032609,-500.0,0.00018356,7]
[408065221,1773099032618,-500.0,0.00018356,7]
[408065223,1773099032627,-500.0,0.00018356,7]
[408065225,1773099032636,-218.46,0.00018387,2]
[408065227,1773099032645,-788.88,0.00018438,2]
[408065229,1773099032654,-3083.6,0.00018603,2]
[408065231,1773099032664,-200.0,0.0001863,2]
[408065233,1773099032672,-773.0,0.00018634,2]
[408065235,1773099032682,-500.0,0.00018635,2]
[408065237,1773099032692,-500.0,0.00018635,2]
[408065239,1773099032701,-500.0,0.00018635,2]
[408065240,1773099032710,-500.0,0.00018635,2]
[408065241,1773099032720,-500.0,0.00018635,2]
[408065242,1773099032729,-500.0,0.00018635,2]
[408065243,1773099032739,-500.0,0.00018635,2]
[408065244,1773099032748,-500.0,0.00018635,2]
[408065245,1773099032758,-500.0,0.00018635,2]
[408065246,1773099032768,-151.0,0.00018635,2]
[408065247,1773099032777,-500.0,0.00018635,2]
[408065248,1773099032787,-151.0,0.00018635,2]
[408065249,1773099032796,-500.0,0.00018635,2]
[408065250,1773099032805,-151.0,0.00018635,2]
[408065251,1773099032816,-565.63411788,0.00018635,2]
[408065252,1773099032825,-151.0,0.00018635,2]
[408065253,1773099032835,-151.0,0.00018635,2]
[408065254,1773099032844,-151.0,0.00018635,2]
[408065255,1773099032854,-151.0,0.00018635,2]
[408065256,1773099032863,-151.0,0.00018635,2]
[408065257,1773099032872,-151.0,0.00018635,2]
[408065258,1773099032882,-151.0,0.00018635,2]
[408065259,1773099032892,-151.0,0.00018635,2]
[408065260,1773099032901,-151.0,0.00018635,2]
[408065261,1773099032911,-151.0,0.00018635,2]
[408065262,1773099032922,-151.0,0.00018635,2]
[408065263,1773099032931,-151.0,0.00018635,2]
[408065264,1773099032944,-151.0,0.00018635,2]
[408065265,1773099032953,-151.0,0.00018635,2]
[408065266,1773099032963,-151.0,0.00018635,2]
[408065267,1773099032977,-151.0,0.00018635,2]
[408065268,1773099032989,-151.0,0.00018635,2]
[408065269,1773099032998,-151.0,0.00018635,2]
[408065270,1773099033008,-151.0,0.00018635,2]
[408065271,1773099033018,-151.0,0.00018635,2]
[408065272,1773099033027,-151.0,0.00018635,2]
[408065273,1773099033036,-151.0,0.00018635,2]
[408065274,1773099033046,-151.0,0.00018635,2]
[408065275,1773099033055,-151.0,0.00018635,2]
[408065276,1773099033064,-151.0,0.00018635,2]
[408065277,1773099033074,-151.0,0.00018635,2]
[408065278,1773099033083,-151.0,0.00018635,2]
[408065279,1773099033093,-151.0,0.00018635,2]
[408065280,1773099033103,-1385.8685,0.00018646,2]
[408065281,1773099033112,-16419.926,0.00018646,2]
[408065282,1773099033121,-2500.0,0.000187,2]
[408065283,1773099033131,-847.0,0.0001872,2]
[408065284,1773099033140,-2806.0,0.0001872,2]
[408065285,1773099033150,-1000.0,0.00018745,2]
[408065286,1773099033159,-28196.27,0.00018746,2]
[408065287,1773099033169,-2427.01,0.0001876,2]
[408065288,1773099033179,-369.0,0.00018786,2]
[408065289,1773099033188,-4233.39320519,0.00018788,2]
[408065290,1773099033198,-702.63,0.0001879,2]
[408065291,1773099033207,-24890.91146015,0.00018799,2]
[408065292,1773099033219,-500.0,0.00018799,2]
[408065293,1773099033230,-630.75339574,0.00018799,2]
[408065294,1773099033242,-1552.98,0.00018799,2]
[408065295,1773099033254,-284.15203215,0.00018799,2]
[408065301,1773099038363,-4639.36741196,0.00018799,2]
[408065302,1773099038373,-1852.42,0.00018807,2]
[408065303,1773099038383,-168.0,0.00018807,2]
[408065304,1773099038392,-2022.01,0.00018827,2]
[408065305,1773099038402,-11672.1009895,0.00018878,2]
[408065306,1773099038411,-427.65,0.00018888,2]
[408065307,1773099038421,-1000.0,0.00018904,2]
[408065308,1773099038430,-503.0,0.00018909,3]
[408065309,1773099038440,-4233.39320517,0.00018912,2]
[408065310,1773099038449,-166.66,0.00018946,2]
[408065311,1773099038460,-1000.0,0.00018979,2]
[408065312,1773099038469,-693.3919763,0.00018979,2]
[408065313,1773099038479,-174.61919141,0.00018979,2]
[408065314,1773099038488,-8210.0413329,0.00018979,2]
[408065315,1773099038498,-1500.0,0.00018979,2]
[408065316,1773099038507,-1500.0,0.00018979,2]
[408065317,1773099038517,-1500.0,0.00018979,2]
[408065318,1773099038526,-668.65185757,0.00018979,2]
[408065319,1773099038535,-445.4,0.00019011,2]
[408065320,1773099038545,-166.11925207,0.00019014,2]
[408065321,1773099038554,-4233.39320517,0.00019035,2]
[408065322,1773099038563,-1082.67,0.00019106,2]
[408065323,1773099038573,-168.0,0.00019128,2]
[408065324,1773099038582,-4233.39320517,0.00019159,2]
[408065325,1773099038592,-427.65,0.00019162,2]
[408065326,1773099038601,-587.46,0.00019178,2]
[408065327,1773099038610,-1000.0,0.00019178,2]
[408065328,1773099038619,-169.86092391,0.00019205,2]
[408065329,1773099038629,-166.11925207,0.00019205,2]
[408065330,1773099038638,-169.86092391,0.00019205,2]
[408065331,1773099038648,-168.09661594,0.00019205,2]
[408065332,1773099038657,-2427.01,0.00019218,2]
[408065333,1773099038667,-446.87533365,0.00019223,2]
[408065334,1773099038676,-168.0,0.00019261,2]
[408065335,1773099038686,-168.0,0.00019262,2]
[408065336,1773099038695,-4233.39320517,0.00019282,2]
[408065338,1773099038705,-4233.39320517,0.00019406,2]
[408065340,1773099038714,-169.86092391,0.00019425,2]
[408065342,1773099038723,-166.11925207,0.00019425,2]
[408065344,1773099038733,-169.86092391,0.00019425,2]
[408065345,1773099038743,-168.09661594,0.00019425,2]
[408065346,1773099038753,-427.65,0.00019436,2]
[408065347,1773099038762,-168.0,0.0001945,2]
[408065348,1773099038772,-1000.0,0.00019452,2]
[408065349,1773099038782,-3511.82958898,0.00019478,2]
[408065350,1773099038791,-420.0,0.00019479,2]
[408065351,1773099038800,-1000.0,0.00019527,2]
[408065352,1773099038810,-181.08010149,0.00019527,2]
[408065353,1773099038819,-184.51044822,0.00019527,2]
[408065354,1773099038828,-4233.39320517,0.00019529,2]
[408065355,1773099038838,-2500.0,0.00019556,2]
[408065356,1773099038847,-1104.6742959,0.00019556,2]
[408065357,1773099038856,-1855.8568871,0.00019563,2]